Cogmind - Beta 16 --- EXPLORER MODE // 2026.01.23 @ 09:56:19 Player: K.K.Y. Result: Destroyed by RD-IE7(R) with Subdweller Beam Cannon Performance ------------- Evolutions (0) 0 Regions Visited (3) 600 Robots Destroyed (52) 260 Value Destroyed (1361) 1361 Prototype IDs (12) 240 Alien Tech Used (0) 0 Bonus (-586) -586 TOTAL SCORE: 1875 Bonus ------- Follower Combat Kills 85 Friendly Fire -671 Cogmind --------- Core Integrity 0/250 Matter 300/300 Energy 134/160 System Corruption 0% Temperature Cool (9) Movement Treading (160) Location -10/Subcaves Parts ------- > --- POWER (1) -------- Light Nuclear Core > --- PROPULSION (2) --- Light Treads Light Treads > --- UTILITY (3) ------ Improved Heat Sink Large Storage Unit Structural Scanner > --- WEAPON (2) ------- Pulse Rifle Beamcaster > --- INVENTORY (15) --- Improved Heat Sink High-capacity Storage Unit Humpback Structural Scanner Sensor Array Improved Terrain Scanner Hardened Medium Armor Plating Improved Light Armor Plating Makeshift Hacking Suite Bomb Drone Bay Mining Laser Plasma Cutter Makeshift Sword Peak State ------------ > --- POWER ------------ Light Nuclear Core > --- PROPULSION ------- Light Treads Light Treads > --- UTILITY ---------- Improved Heat Sink Large Storage Unit Structural Scanner > --- WEAPON ----------- Pulse Rifle Beamcaster > --- INVENTORY -------- High-capacity Storage Unit Humpback Structural Scanner Sensor Array Improved Terrain Scanner Hardened Medium Armor Plating Improved Light Armor Plating Makeshift Hacking Suite Bomb Drone Bay Beam Cannon Mining Laser Plasma Cutter Makeshift Sword [Rating: 22] Favorites ----------- Power Light Nuclear Core Engine Ion Engine Power Core Light Nuclear Core Propulsion Light Treads Treads Light Treads Utility Improved Heat Sink Device Improved Heat Sink Storage Large Storage Unit Weapon Beam Cannon Energy Gun Beamcaster Energy Cannon Beam Cannon Build | -11 -10 -10 -10 ------- Run | Yrd Mat Min Sub Slots Evolved 1 | . 1 . . Power . | . . . . Propulsion . | . . . . Utility 1 | . 1 . . Weapon . | . . . . Parts Attached 27 | 6 9 4 8 Power 5 | 1 2 1 1 Engine 3 | 1 2 . . Core 2 | . . 1 1 Reactor . | . . . . Propulsion 7 | 2 3 1 1 Treads 7 | 2 3 1 1 Leg . | . . . . Wheel . | . . . . Hover . | . . . . Flight . | . . . . Utility 9 | 2 2 2 3 Device 6 | 1 1 1 3 Storage 3 | 1 1 1 . Processor . | . . . . Hackware . | . . . . Protection . | . . . . Artifact . | . . . . Weapon 6 | 1 2 . 3 Energy Gun 4 | 1 . . 3 Energy Cannon 2 | . 2 . . Ballistic Gun . | . . . . Ballistic Cannon . | . . . . Launcher . | . . . . Special Weapon . | . . . . Impact Weapon . | . . . . Slashing Weapon . | . . . . Piercing Weapon . | . . . . Special Melee Weapon . | . . . . Unidentified Prototypes . | . . . . Parts Lost 1 | . . . 1 Power . | . . . . Propulsion . | . . . . Utility . | . . . . Weapon 1 | . . . 1 Highest Loss Streak 1 | . . . 1 To Critical Strikes . | . . . . Average Backups 10 | . 6 13 13 Power . | . 1 . . Propulsion . | . . . . Utility 7 | . 2 9 9 Weapon 2 | . 1 2 2 Tool/Special . | . . . . Unused Backups 14 | 1 . 1 12 Power . | . . . . Propulsion . | . . . . Utility 10 | . . 1 9 Weapon 3 | 1 . . 2 Tool/Special 1 | . . . 1 Average Slot Usage (%) 97 | . 90 100 100 Engine 4 | . 12 4 . Core 7 | . . 7 12 Treads 24 | . 22 25 25 Device 24 | . 21 25 25 Storage 12 | . 12 12 12 Energy Gun 9 | . 9 . 14 Energy Cannon 14 | . 11 25 9 Peak Build Rating 22 | 6 12 16 22 Average Rating 15 | 5 9 14 20 On Entrance 8 | . 6 11 16 Avg Prop Armor Cover (%) . | . . . . Naked Turns . | . . . . Heaviest Build 35 | 18 33 33 35 Greatest Support 40 | 40 40 40 40 Greatest Overweight (x) . | . . . . Average Overweight (x) . | . . . . Largest Inventory Capacity 20 | 10 15 20 15 Average Capacity 14 | 9 12 15 15 Most Carried 15 | 5 13 15 15 Average Carried 11 | 1 6 13 14 Final Capacity 15 | 10 15 15 15 Final Carried 15 | 2 11 15 15 Class Distribution -------------------- 58% | Hacker-Mutant 41% | Scavenger-Mutant Dominant Class ---------------- Hacker-Mutant | -10/Materials Hacker-Mutant | -10/Mines Scavenger-Mutant | -10/Subcaves Resources | -11 -10 -10 -10 ----------- Run | Yrd Mat Min Sub Matter Collected 500 | 252 88 70 90 Remotely . | . . . . Salvage Created 1955 | 124 987 121 723 Parts 98 | 7 53 6 32 Haulers Intercepted 2 | . 2 . . Recyclers Shooed . | . . . . Parts Field Recycled . | . . . . Retrieved Matter . | . . . . Parts Self-Destructed . | . . . . Prevented . | . . . . Parts Restored . | . . . . Kills | -11 -10 -10 -10 ------- Run | Yrd Mat Min Sub Combat Hostiles Destroyed 39 | . 21 4 14 Guns 15 | . 8 . 7 Cannons 23 | . 12 4 7 Classes Destroyed 13 | 2 5 1 5 Builder 1 | . 1 . . Tunneler 3 | 3 . . . Hauler 2 | . 2 . . Recycler 1 | 1 . . . Turret 1 | . . . 1 Watcher 3 | . 3 . . Swarmer 7 | . 2 3 2 Grunt 20 | . 19 . 1 Sentry 1 | . . . 1 Artisan 2 | . . . 2 Subdweller 10 | . . . 10 Zionite 2 | . . . 2 Assembled 1 | . . 1 . Thug 1 | . . 1 . Best Kill Streak 4 | 2 4 2 2 Combat Bots Only 3 | . 3 2 2 Max Kills in Single Turn 1 | 1 1 1 1 Gunslinging . | . . . . Exploded . | . . . . Melee . | . . . . Uniques/NPCs Destroyed . | . . . . Combat | -11 -10 -10 -10 -------- Run | Yrd Mat Min Sub Hostile Shots Fired 174 | . 73 4 97 Missed 57 | . 17 4 36 Hits 117 | . 56 . 61 Projectile 117 | . 56 . 61 Damage Taken 999 | . 437 33 529 Core 257 | . 96 11 150 Absorbed by Shields . | . . . . Ignored by Resistances 611 | . 276 19 316 Core Remaining (%) 100 | 100 . . . Volleys Fired 176 | 13 72 18 73 Largest 2 | 1 2 2 2 Hottest 138 | 50 120 120 138 Shots Fired 305 | 13 111 36 145 Gun 164 | 13 61 . 90 Cannon 141 | . 50 36 55 Launcher . | . . . . Special . | . . . . Kinetic . | . . . . Thermal 305 | 13 111 36 145 Explosive . | . . . . Electromagnetic . | . . . . Robot Hit Streak 44 | 13 23 23 44 Robot Miss Streak 2 | . 2 1 1 Penetration Max . | . . . . Secondary Targets . | . . . . Shots Hit Robots 239 | 13 94 30 102 Core Hits 83 | 5 39 10 29 Critical Kills . | . . . . Critical Parts Destroyed . | . . . . Critical Strikes 24 | 2 9 . 13 Burn 24 | 2 9 . 13 Melee Attacks . | . . . . Impact . | . . . . Slashing . | . . . . Piercing . | . . . . Sneak Attacks . | . . . . Combat Hostiles . | . . . . Follow-up Attacks . | . . . . Damage Inflicted 3914 | 158 1379 531 1846 Guns 2091 | 158 701 . 1232 Cannons 1818 | . 678 526 614 Explosions . | . . . . Melee . | . . . . Ramming 5 | . . 5 . Kinetic . | . . . . Thermal 3909 | 158 1379 526 1846 Explosive . | . . . . Electromagnetic . | . . . . Impact . | . . . . Slashing . | . . . . Piercing . | . . . . Highest Corruption . | . . . . Average Corruption . | . . . . Corruption Purged . | . . . . Corruption Blocked . | . . . . Overload Shots . | . . . . Overflow Damage 13 | . 1 12 . Projectiles 13 | . 1 12 . Explosions . | . . . . Melee . | . . . . Knockbacks . | . . . . Impact . | . . . . Kinetic . | . . . . Secondary . | . . . . Self-Inflicted Damage . | . . . . Shots . | . . . . Rammed 1 | . . 1 . Targets Rammed 1 | . . 1 . Kicked . | . . . . Crushed . | . . . . Highest Temperature 224 | 40 224 90 11 Average Temperature 46 | 16 56 34 4 Received Heat Transfer 618 | . 369 . 249 Siege Activations . | . . . . Martial Activations . | . . . . Shielding Activations . | . . . . Robots Disrupted . | . . . . Combat Hostiles . | . . . . Robots Corrupted . | . . . . Combat Hostiles . | . . . . Parts Fried . | . . . . Impact Corruptions . | . . . . Robots Melted 2 | . 1 . 1 Combat Hostiles 1 | . 1 . . Parts Melted 20 | 1 10 1 8 Heat Transferred 10471 | 629 4181 1110 4551 Parts Sabotaged . | . . . . Parts Stolen . | . . . . Parts Stripped . | . . . . Power Chain Reactions . | . . . . Alert | -11 -10 -10 -10 ------- Run | Yrd Mat Min Sub Maximum Alert Level . | . . . . Low Security (%) 100 | 100 100 100 . Level 1 . | . . . . Level 2 . | . . . . Level 3 . | . . . . Level 4 . | . . . . Level 5 . | . . . . High Security . | . . . . Max Security . | . . . . Peak Influence 55 | 5 55 55 . Initial 4 | . . 4 . Average 6 | 1 11 1 . Influence Increases 841 | 20 585 71 165 Destroy 0b10 Robot/C 620 | . 420 60 140 Destroy 0b10 Robot/NC 50 | 20 30 . . Destroy Leader 120 | . 100 10 10 Allied During Kill 1 | . . 1 . Successful Hack 35 | . 35 . . Lose Combat Pursuer 15 | . . . 15 Influence Decreases 841 | 20 568 88 165 Entered New Map 13 | . . 13 . Time Decay 828 | 20 568 75 165 Squads Dispatched 5 | . 5 . . Investigation 5 | . 5 . . Extermination . | . . . . Reinforcement . | . . . . Assault . | . . . . Garrison . | . . . . Intercept . | . . . . Searches Triggered . | . . . . Construction Impeded . | . . . . Haulers Reinforced . | . . . . Active Scanning Responses . | . . . . Cargo Convoy Interrupts . | . . . . Stealth | -11 -10 -10 -10 --------- Run | Yrd Mat Min Sub Distress Signals 1 | . 1 . . Communications Jammed . | . . . . Distress Signals . | . . . . Times Spotted 49 | . 22 5 22 Peak Tracking Total 4 | . 3 2 4 Tactical Retreats 1 | . . . 1 Traps | -11 -10 -10 -10 ------- Run | Yrd Mat Min Sub Traps Triggered 4 | . 2 2 . Indirectly . | . . . . Trap Hack Attempts . | . . . . Triggered . | . . . . Disarmed . | . . . . Reprogrammed . | . . . . Reused . | . . . . Traps Extracted . | . . . . Installed . | . . . . Triggered . | . . . . Machines | -11 -10 -10 -10 ---------- Run | Yrd Mat Min Sub Machines Disabled 2 | . . . 2 Max in Single Turn 1 | . . . 1 Machines Repaired . | . . . . Machines Dismantled . | . . . . Machines Sabotaged . | . . . . Overloaded Fab Kills . | . . . . Hacking | -11 -10 -10 -10 --------- Run | Yrd Mat Min Sub Machines Accessed 12 | . 9 2 1 Terminals 7 | . 7 . . Fabricators . | . . . . Repair Stations . | . . . . Recycling Units 2 | . 2 . . Scanalyzers . | . . . . Garrison Access . | . . . . Total Hacks 34 | . 31 2 1 Successful 21 | . 18 2 1 Failed 13 | . 13 . . Catastrophic 2 | . 2 . . Database Lockouts . | . . . . Manual 31 | . 31 . . Terminals 29 | . 29 . . Fabricators . | . . . . Repair Stations . | . . . . Recycling Units 2 | . 2 . . Scanalyzers . | . . . . Garrison Access . | . . . . Terminal Hacks 19 | . 16 2 1 Part Schematic 13 | . 13 . . Robot Schematic 3 | . 3 . . Open Door 2 | . . 2 . Proto ID Catalog 1 | . . . 1 Fabricator Hacks . | . . . . Repair Station Hacks . | . . . . Recycling Unit Hacks 2 | . 2 . . Retrieve Components 2 | . 2 . . Scanalyzer . | . . . . Garrison Access Hacks . | . . . . Unauthorized Hacks . | . . . . Terminals . | . . . . Fabricators . | . . . . Repair Stations . | . . . . Recycling Units . | . . . . Scanalyzers . | . . . . Garrison Access . | . . . . Data Cores Recovered . | . . . . Used . | . . . . Hacking Detections 8 | . 8 . . Full Trace Events 5 | . 5 . . Feedback Events . | . . . . Feedback Blocked . | . . . . Robot Schematics Acquired 3 | . 3 . . Robots Built . | . . . . Authchips . | . . . . Time . | . . . . Total Robot Build Rating . | . . . . Part Schematics Acquired 12 | . 12 . . Parts Built . | . . . . Authchips . | . . . . Time . | . . . . Total Part Build Rating . | . . . . Part Studies Acquired . | . . . . Parts Repaired . | . . . . Time . | . . . . Parts Recycled . | . . . . Recycled Matter . | . . . . Retrieved Matter . | . . . . Retrieved Components 15 | . 15 . . Parts Scanalyzed . | . . . . Part Schematics Acquired . | . . . . Parts Damaged . | . . . . Bothacking | -11 -10 -10 -10 ------------ Run | Yrd Mat Min Sub Used RIF Installer . | . . . . Robots Hacked . | . . . . Non-combat . | . . . . Combat . | . . . . Robot Hacks Applied . | . . . . Relay Couplers Released . | . . . . Fabnet Peak Effective % . | . . . . Robots Rewired . | . . . . Allies Hacked . | . . . . Hacks Repelled . | . . . . Allies | -11 -10 -10 -10 -------- Run | Yrd Mat Min Sub Total Allies 2 | . . 2 . Largest Group 2 | . . 2 2 Highest-Rated Group 45 | . . 45 45 Highest-Rated Ally 31 | . . 31 31 Total Orders . | . . . . Ally Attacks 36 | . . 3 33 Total Damage 582 | . . 44 538 Kills 4 | . . . 4 Allies Corrupted . | . . . . Allies Melted . | . . . . Intel | -11 -10 -10 -10 ------- Run | Yrd Mat Min Sub Active Infowar (turns) 5508 | 114 1562 1369 2463 Sensors 3081 | 114 1562 1369 36 Structural 2427 | . . . 2427 Robot Analysis Total . | . . . . Derelict Logs Recovered 2 | . . . 2 Drone Launches . | . . . . Drone Recoveries . | . . . . Exploration | -11 -10 -10 -10 ------------- Run | Yrd Mat Min Sub Turns Passed 5522 | 128 1562 1369 2463 Spaces Moved 3060 | 70 822 777 1391 Core 22 | 22 . . . Treads 3038 | 48 822 777 1391 Legs . | . . . . Wheels . | . . . . Hover . | . . . . Flight . | . . . . Fastest Speed 50 | 50 160 160 160 Average Speed 159 | 125 160 160 160 Slowest Speed 160 | 160 160 160 160 Overloaded Moves . | . . . . Propulsion Burnouts . | . . . . Robots Hopped . | . . . . Potential Cave-ins . | . . . . Cave-ins Triggered . | . . . . Exploration Rate (%) 71 | 4 95 100 85 Regions Visited 3 Branch Regions 2 Pre-discovered Areas 3 | . . 1 2 Known Exits Taken 3 | 1 1 1 . Unknown Exits Taken . | . . . . Scrap Searched 6 | . . 1 5 Spaces Dug . | . . . . Terrain Destroyed . | . . . . Melee . | . . . . Projectile . | . . . . AOE . | . . . . Terrain Rammed . | . . . . Walls Destroyed . | . . . . Machines Disabled . | . . . . Actions | -11 -10 -10 -10 --------- Run | Yrd Mat Min Sub Total 3407 | 97 958 866 1486 Wait 86 | . 29 56 1 Move 3057 | 69 821 776 1391 Hop . | . . . . Pick Up 38 | 8 19 6 5 Fast Attach 1 | 1 . . . Attach 9 | 5 3 . 1 Detach . | . . . . Swap 20 | . 7 5 8 Drop 19 | 1 7 4 7 Fire 176 | 13 72 18 73 Melee . | . . . . Ram . | . . . . Kick . | . . . . Crush 1 | . . 1 . Escape Stasis . | . . . . Rewire . | . . . . Trap . | . . . . Miscellaneous . | . . . . Route ------- -11/Scrapyard -10/Materials (discovered 6 exits: *Mat x3 / *Min x2 / *Sub) -10/Mines (discovered 4 exits: *Mat x2 / *Exi / *Sub) -10/Subcaves (discovered 3 exits: *Mat x2 / *Rec) History --------- Turn | Location | Event 2 | -11/Scrapyard | Met Revision 17 12 | -11/Scrapyard | Identified exit to Materials 12 | -11/Scrapyard | Discovered exit to Materials (range 16) 129 | -11/Scrapyard | Entered Materials 129 | -10/Materials | Evolved 1 slot: Utility x1 297 | -10/Materials | Identified exit to Subcaves 297 | -10/Materials | Discovered exit to Subcaves (range 11) 307 | -10/Materials | Build established: Hacker-Mutant 382 | -10/Materials | Identified exit to Mines 382 | -10/Materials | Discovered exit to Mines (range 11) 475 | -10/Materials | Identified exit to Materials 475 | -10/Materials | Discovered exit to Materials (range 6) 868 | -10/Materials | Discovered exit to Materials (range 3) 1114 | -10/Materials | Discovered exit to Materials (range 6) 1413 | -10/Materials | Discovered exit to Mines (range 16) 1691 | -10/Materials | Entered Mines 1879 | -10/Mines | Found a hidden stash of uninstalled traps 1978 | -10/Mines | Received a Rocket Launcher from a helpful Derelict 2012 | -10/Mines | Assembled infested the area 2041 | -10/Mines | Met 8R-AWN 2087 | -10/Mines | Discovered exit to Materials (range 5) 2098 | -10/Mines | Met a Derelict who couldn't figure out how to use a Trap Extractor 2193 | -10/Mines | Discovered exit to Materials (range 11) 2219 | -10/Mines | Found the Drone Emporium 2259 | -10/Mines | Found Prototype Device 2797 | -10/Mines | Learned location of Storage (-8) 2878 | -10/Mines | Identified exit to Exiles 2878 | -10/Mines | Discovered exit to Exiles (range 5) 3020 | -10/Mines | Discovered exit to Subcaves (range 14) 3060 | -10/Mines | Entered Subcaves 3060 | -10/Subcaves | Accompanied by 2 allies 3065 | -10/Subcaves | Led the pair of lost Derelicts to an unsafe place 3311 | -10/Subcaves | Visited 4L-MR0's lab 3513 | -10/Subcaves | Core integrity fell below 50% 3568 | -10/Subcaves | Build established: Scavenger-Mutant 4211 | -10/Subcaves | Identified exit to Recycling 4211 | -10/Subcaves | Discovered exit to Recycling (range 14) 4661 | -10/Subcaves | Identified exit to Materials 4661 | -10/Subcaves | Discovered exit to Materials (range 15) 4670 | -10/Subcaves | Learned location of Zion (-7) 4670 | -10/Subcaves | Met a Zionite searching for "candidates" 4763 | -10/Subcaves | Shifting Twisted Machinery released Riot Gun 4770 | -10/Subcaves | Learned Materials security intel 4777 | -10/Subcaves | Shifting Twisted Machinery released Mak. Sword 4890 | -10/Subcaves | Core integrity fell below 20% 4988 | -10/Subcaves | A swath of the cavern ceiling suddenly collapsed 5025 | -10/Subcaves | Disturbed a concealed Subdweller 5339 | -10/Subcaves | Discovered exit to Materials (range 6) 5523 | -10/Subcaves | Destroyed by RD-IE7(R) with Subdweller Beam Cannon Last Messages --------------- Twisted Machinery. 05031_ G1-UE4(R) suffers critical hit (Burn). 05032_ G1-UE4(R) affixes Scrap Shield Fragment to Scrap Shield. 05034_ Sub. Optics melted. 05034_ G1-UE4(R) destroyed. 05037_ Acquired 10 matter. 05044_ Searching scrap... 05044_ Found Sub. Power Source. 05044_ Found 52 Matter. 05045_ Searching scrap... 05045_ Found Sub. Power Source. 05045_ Found 55 Matter. 05339_ EXIT=FOUND: MATERIALS 05346_ 8F-Z2H(R): "ECOKILL!" 05350_ 8F-Z2H(R) suffers critical hit (Burn). 05359_ Sub. Power Source melted. 05359_ 8F-Z2H(R) destroyed. 05382_ Subatomizers dissect the Flight Unit. Map ----- +----------------------------------------------------+ | ## # "[##### " ###?## # ### | | ###?### ## ###### ###### | | ####### ## ###### ###### | | ###" ######## # ## " ##?### ##???# | | ## ###" "###%### " ###?#### #########???? | | [%!# # ## """"==%! "" ##??###############???? | | = !]# "" ## ##???#######??????????? | | " ### &"#" ########????????????????????? | | # ##" # ""#### "#" #######????????????????????? | | ####### #### """"" ##????????????????????????? | | #### ### ### """###" ##????????????????????????? | | ??### # " "" """ ##????????????????????????? | | ???## " """"""" ##????????????????????????? | | ???## # #####" "" ##????????????????????????? | | ???#### #######""" "##????????????????????????? | | ???### ####?##" ####????????????????????????? | | ??# # ###???##"" ####??????###???????????????? | | ##### ## ###???#### ####?????? ##???????????????? | | #### #######????####" ##### ???$####?????????????? | | # ##### ##########" #####? <########??????????? | | # ### #### ### """ ## ## #####??????????? | | ## ## ### # ##??????????? | | ## # R < ##??????????? | | ## ## ###??????????? | | < ## ######### ##???????????? | | = #### ######### @ ###??????????? | | #### ##?????### # ##### ##??????????? | | ###??? ##?????####### ##### ##??????????? | | ##### ? ###??????##### ###????????????????? | | #####?? ###????????????? ###???????????????? | | ##?? #??????????????? ##???????????????? | | ## ##???? ???????????????? ##???????????????? | | ### ###???? ??????????????? ##???????????????? | | #### ###????? ?????????????? ##?????????####### | | ### ######??????????????????????????????####### | | ## #######?????????????????????????????##""" | | ## ####????????????????????????????##" | | ### ####??????????????????????????###" % ! | | #### ###??????????????????????????###" & | | ?### ##??????????????????????????##> [ | | ??## #####??????????????????????????###"" %= | | ??### #####???????????????????????????##" | | ??#### ##???????? ???????????????????##" | | ???#### ###?????? ?????????????????##""" | | ????#### ####???? ????????????????####### | | ?????### ###??? ?????????????????####### | | ??????### ##??? ???????????????????????? | | ??????#### " ##?## ##???????????????????????? | | ???????### "" ##### ##???????????????????????? | | ????????## "" ##### ###??????????????????????? | +----------------------------------------------------+ Best States ------------- Heat Dissipation 39 Energy Generation 14 Energy Capacity 250 Matter Stores 300 Matter Capacity 300 Sight Range 16 Robot Scan Range 14 Terrain Scan Density 10 Resistance: KI 35 Resistance: TH 35 Resistance: EX 35 Resistance: EM 35 Resistance: I 35 Resistance: S 35 Resistance: P 35 Evasion (%) 50 Recoil Reduction 2 Offensive Hacking 20 Item Schematics ----------------- Huge Storage Unit | -10/Materials | Hacked Hcp. Storage Unit | -10/Materials | Hacked Structural Scanner | -10/Materials | Hacked Cargo Storage Unit | -10/Materials | Hacked Beam Cannon | -10/Materials | Hacked Med. Storage Unit | -10/Materials | Hacked Sml. Storage Unit | -10/Materials | Hacked Lrg. Storage Unit | -10/Materials | Hacked Sensor Array | -10/Materials | Hacked ECM Suite | -10/Materials | Hacked Lgt. Treads | -10/Materials | Hacked Datajack | -10/Materials | Hacked Robot Schematics ------------------ W-16 Scout | -10/Materials | Hacked G-34 Mercenary | -10/Materials | Hacked S-10 Pest | -10/Materials | Hacked Fabricated ------------ Nothing Repaired ---------- Nothing Studied --------- None Alien Tech Used ----------------- None Achievements -------------- None Challenges ------------ None Game ------ Seed ZioniteHeatEdition Manual? 0 Play Time 00:30:41 Cumulative 305.6 hours Start 2026.01.23 @ 09:33:44 End 2026.01.23 @ 09:56:19 Sessions 1 Manual Loads 0 Difficulty Explorer Special Mode None Game No. 471 Rogue 0 Adventurer 0 Explorer 471 Win Type - Total 0 Types 0/0/0/0/0/0/0/0/0/0 Lore% 76 Gallery% 70 Achievement% 56 Wizard Run 0 Options --------- Layout 1 ASCII 0 Keyboard 0 Movement Mouse Keybinds 1 Fullscreen 1 Font 24/Smallcaps Map View 50x35 Zoom Use 0% Tactical HUD 1 Map Filters NONE Filters NONE Steam 1 RUN: 7204d962-6fee-4580-8657-075f39007a48